bitfinex-derivatives/quotes_BTCF0:USTF0_20250828
["timestamp","ask_amount","ask_price","bid_price","bid_amount"]
[1756385442702,0.06444214,113240.0,113230.0,0.63245311]
[1756385442904,0.06444214,113240.0,113230.0,0.99325311]
[1756385443406,0.06444214,113240.0,113230.0,0.6219862]
[1756385443705,0.06444214,113240.0,113230.0,0.99325311]
[1756385444400,0.02582214,113240.0,113230.0,0.99325311]
[1756385444599,0.02582214,113240.0,113230.0,0.96973311]
[1756385444797,0.04918214,113250.0,113230.0,0.96973311]
[1756385445004,0.06444214,113250.0,113240.0,0.41122691]
[1756385449106,0.06444214,113250.0,113240.0,0.41222691]
[1756385451809,0.06444214,113250.0,113240.0,0.04096]
[1756385452907,0.06444214,113250.0,113240.0,0.41222691]
[1756385453107,0.06444214,113250.0,113240.0,0.50053011]
[1756385455015,0.06444214,113250.0,113240.0,0.41222691]
[1756385457209,0.06444214,113250.0,113240.0,0.50053031]
[1756385458109,0.06444214,113250.0,113240.0,0.41222691]
[1756385459403,0.4815433,113250.0,113240.0,0.45806116]
[1756385462113,0.4815433,113250.0,113240.0,0.54636486]
[1756385462114,0.04108214,113250.0,113240.0,0.54636486]
[1756385462414,0.02582214,113250.0,113240.0,1.68426602]
[1756385462616,0.82244,113260.0,113250.0,0.02333]
[1756385462807,0.84845442,113260.0,113250.0,0.87357232]
[1756385463009,0.86463442,113260.0,113250.0,0.87357232]
[1756385463311,0.84845442,113260.0,113250.0,0.96186822]
[1756385464515,0.04319442,113260.0,113250.0,0.96186822]
[1756385465409,0.02701442,113260.0,113250.0,0.4983008]
[1756385466011,0.02701442,113260.0,113250.0,0.8591008]
[1756385466607,0.02701442,113260.0,113250.0,0.9691008]
[1756385466812,0.02701442,113260.0,113250.0,1.2191008]
[1756385468616,0.001,113260.0,113250.0,1.2191008]
[1756385469009,0.01763257,113270.0,113260.0,0.088288]
[1756385469212,0.05877257,113270.0,113260.0,1.7518429]
[1756385469810,0.05877257,113270.0,113260.0,1.82112785]
[1756385470307,0.03381257,113270.0,113260.0,1.82112785]
[1756385470504,0.01763257,113270.0,113260.0,1.82112785]
[1756385471317,0.01763257,113270.0,113260.0,1.45149295]
[1756385471517,0.01763257,113270.0,113260.0,1.82212785]
[1756385473818,0.01763257,113270.0,113260.0,1.46132785]
[1756385474018,0.01763257,113270.0,113260.0,1.82212785]
[1756385474319,0.04114,113290.0,113280.0,0.0882724]
[1756385474518,0.04114,113290.0,113280.0,0.4589073]
[1756385474817,0.04114,113290.0,113280.0,0.0882724]
[1756385475217,1.29731734,113300.0,113280.0,0.0882724]
[1756385475218,0.92118,113300.0,113290.0,0.0882646]
[1756385475417,0.92118,113300.0,113290.0,0.4588995]
[1756385475714,0.89622,113300.0,113290.0,0.8196995]
[1756385475920,0.89622,113300.0,113290.0,0.9296995]
[1756385476514,0.01622,113300.0,113290.0,0.9296995]
[1756385477022,0.89822,113300.0,113290.0,0.9296995]
[1756385477819,0.02022,113300.0,113290.0,0.9296995]
[1756385478413,0.90022,113300.0,113290.0,0.9296995]
[1756385478615,0.02022,113300.0,113290.0,0.9296995]
[1756385480416,0.00404,113300.0,113290.0,0.9296995]
[1756385480617,0.02972711,113300.0,113290.0,0.9296995]
[1756385482113,0.04590711,113300.0,113290.0,0.9296995]
[1756385484521,0.02972711,113300.0,113290.0,0.9296995]
[1756385484721,0.04590711,113300.0,113290.0,0.9296995]
[1756385485221,0.02972711,113300.0,113290.0,0.9296995]
[1756385485425,0.04590711,113300.0,113290.0,0.9296995]
[1756385487424,0.04590711,113300.0,113290.0,0.4708]
[1756385487615,0.07086711,113300.0,113290.0,1.3803446]
[1756385488024,0.07086711,113300.0,113290.0,0.11]
[1756385488025,0.69150201,113300.0,113290.0,0.11]
[1756385488225,0.32086711,113300.0,113290.0,0.11]
[1756385489125,0.32086711,113300.0,113290.0,0.5688995]
[1756385489520,0.32086711,113300.0,113290.0,0.11]
[1756385489715,0.32086711,113300.0,113290.0,0.4806349]
[1756385490431,0.32086711,113300.0,113290.0,0.11]
[1756385490727,0.32086711,113300.0,113290.0,0.5688996]
[1756385490928,0.07086711,113300.0,113290.0,0.5688996]
[1756385493130,0.07086711,113300.0,113290.0,0.1982647]
[1756385493330,0.07086711,113300.0,113290.0,0.5688996]
[1756385495432,0.07086711,113300.0,113290.0,0.9296996]
[1756385499637,0.02972711,113300.0,113290.0,0.9296996]
[1756385500138,0.02972711,113300.0,113290.0,1.1796996]
[1756385502540,0.00404,113300.0,113290.0,1.1796996]
[1756385502935,1.28131,113330.0,113320.0,0.0882413]
[1756385503131,1.30699239,113330.0,113320.0,1.3895162]
[1756385503641,1.30699239,113330.0,113320.0,1.0188813]
[1756385503836,0.42699239,113330.0,113320.0,1.3895162]
[1756385504238,1.30999239,113330.0,113320.0,1.3895162]
[1756385504844,0.43399239,113330.0,113320.0,1.3895162]
[1756385506943,0.43399239,113330.0,113320.0,1.0188813]
[1756385507344,0.43399239,113330.0,113320.0,1.3895162]
[1756385508538,0.43399239,113330.0,113320.0,1.0188813]
[1756385508740,0.43399239,113330.0,113320.0,1.3895162]
[1756385509140,0.40973239,113330.0,113320.0,1.3895162]
[1756385509543,0.43399239,113330.0,113320.0,1.3895162]
[1756385509752,0.43399239,113330.0,113320.0,1.0188813]
[1756385510138,0.43399239,113330.0,113320.0,1.3895162]
[1756385511246,0.51359546,113330.0,113320.0,1.3895162]
[1756385511646,0.43399239,113330.0,113320.0,1.3012749]
[1756385512546,0.43399239,113330.0,113320.0,1.3895161]
[1756385512747,0.43399239,113330.0,113320.0,1.46113618]
[1756385512952,0.43399239,113330.0,113320.0,1.09050128]
[1756385513250,0.43399239,113330.0,113320.0,1.46113618]
[1756385513451,0.51359546,113330.0,113320.0,1.09050128]
[1756385513651,0.51359546,113330.0,113320.0,1.41345525]
[1756385516355,0.51359546,113330.0,113320.0,1.32521405]
[1756385516546,0.51359546,113330.0,113320.0,0.95457915]
[1756385516746,0.51359546,113330.0,113320.0,1.32521405]
[1756385517352,0.51359546,113330.0,113320.0,1.41345525]
[1756385519352,0.47308546,113330.0,113320.0,1.41345525]
[1756385519558,0.11228546,113330.0,113320.0,1.41345525]
[1756385519960,0.11990496,113330.0,113320.0,1.41345525]
[1756385522261,0.05633239,113330.0,113320.0,1.32521405]
[1756385522460,0.13593546,113330.0,113320.0,1.32521405]
[1756385522660,0.13593546,113330.0,113320.0,1.41345535]
[1756385523456,0.05633239,113330.0,113320.0,1.41345535]
[1756385526968,0.07217239,113330.0,113320.0,1.37193498]
[1756385527461,0.07217239,113330.0,113320.0,1.41778294]
[1756385528166,0.07217239,113330.0,113320.0,1.50602414]
[1756385529269,0.56825832,113330.0,113320.0,1.41778294]
[1756385529463,0.15177546,113330.0,113320.0,1.41778294]
[1756385529777,0.56825832,113330.0,113320.0,0.59810294]
[1756385530068,0.56825832,113330.0,113320.0,1.41766294]
[1756385530266,0.07217239,113330.0,113320.0,1.41766294]
[1756385530464,0.48865525,113330.0,113320.0,1.41766294]
[1756385531564,0.48865525,113330.0,113320.0,1.00118008]
[1756385531772,0.48865525,113330.0,113320.0,1.41766294]
[1756385532463,0.48865525,113330.0,113320.0,1.00118008]
[1756385532664,0.48865525,113330.0,113320.0,1.41766294]
[1756385532865,0.48865525,113330.0,113320.0,1.34604286]
[1756385533867,0.48865525,113330.0,113320.0,0.52648286]
[1756385534572,0.84945525,113330.0,113320.0,0.11]
[1756385536866,0.84945525,113330.0,113320.0,0.52648286]
[1756385537370,0.84945525,113330.0,113320.0,0.11]
[1756385539468,0.89713443,113330.0,113320.0,0.11]
[1756385543077,0.84945525,113330.0,113320.0,0.11]
[1756385543278,0.89713443,113330.0,113320.0,0.11]
[1756385543675,0.84945525,113330.0,113320.0,0.11]
[1756385543868,0.43297239,113330.0,113320.0,0.11]
[1756385544070,0.43297239,113330.0,113320.0,0.52648286]
[1756385544281,0.84945525,113330.0,113320.0,0.52648286]
[1756385544776,0.43297239,113330.0,113320.0,0.52648286]
[1756385544977,0.84945525,113330.0,113320.0,0.52648286]
[1756385546379,0.84945525,113330.0,113320.0,0.11]
[1756385548380,0.43297239,113330.0,113320.0,0.11]
[1756385548579,0.84945525,113330.0,113320.0,0.11]
[1756385552580,1.14713443,113330.0,113320.0,0.11]
[1756385560987,1.96577443,113330.0,113320.0,0.11]
[1756385561793,1.54929157,113330.0,113320.0,0.11]
[1756385562092,1.96577443,113330.0,113320.0,0.11]
[1756385563489,1.91809525,113330.0,113320.0,0.11]
[1756385563692,1.91782061,113330.0,113320.0,0.11]
[1756385564492,1.96549979,113330.0,113320.0,0.11]
[1756385564694,1.91782061,113330.0,113320.0,0.11]
[1756385564993,1.96549979,113330.0,113320.0,0.11]
[1756385567586,1.96549979,113330.0,113310.0,0.01986054]
[1756385567792,0.83376659,113320.0,113310.0,0.01986054]
[1756385567993,0.85917434,113320.0,113310.0,0.01986054]
[1756385568697,0.90685352,113320.0,113310.0,0.01986054]
[1756385569099,0.9088543,113320.0,113310.0,0.01986054]
[1756385570990,0.9108543,113320.0,113310.0,0.01986054]
[1756385571391,0.86317512,113320.0,113310.0,0.01986054]
[1756385573492,0.0383,113310.0,113300.0,0.45556286]
[1756385573788,1.65927139,113310.0,113300.0,0.07908]
[1756385573992,1.65927139,113310.0,113300.0,0.49556286]
[1756385574688,1.66027139,113310.0,113300.0,0.58381966]
[1756385574892,1.66027139,113310.0,113300.0,0.49556286]
[1756385575698,1.66127139,113310.0,113300.0,0.49556286]
[1756385577796,1.66127139,113310.0,113300.0,0.07908]
[1756385578299,1.66127139,113310.0,113300.0,0.05646]
[1756385578705,2.12543343,113310.0,113300.0,0.04]
[1756385579002,2.39132649,113310.0,113300.0,0.04]
[1756385581999,2.32775425,113310.0,113300.0,0.04]
[1756385583499,2.37544911,113310.0,113300.0,0.04]
[1756385586710,2.37545132,113310.0,113300.0,0.04]
[1756385587807,1.5424856,113310.0,113300.0,0.04]
[1756385588011,1.5424856,113310.0,113290.0,0.41648286]
[1756385588211,0.43272286,113300.0,113290.0,0.51268286]
[1756385588409,0.49883539,113300.0,113290.0,0.53586286]
[1756385589711,0.49883539,113300.0,113290.0,0.53686286]
[1756385590113,0.08235253,113300.0,113290.0,0.53686286]
[1756385590414,0.49883539,113300.0,113290.0,0.53686286]
[1756385592709,0.08235253,113300.0,113290.0,0.53686286]
[1756385593017,0.49883539,113300.0,113290.0,0.53686286]
[1756385593204,0.08235253,113300.0,113290.0,0.53686286]
[1756385593407,0.49883539,113300.0,113290.0,0.12038]
[1756385593608,0.49883539,113300.0,113290.0,0.53686286]
[1756385597618,0.85963539,113300.0,113290.0,0.53686286]
[1756385601822,0.44315253,113300.0,113290.0,0.53686286]
[1756385602210,0.85963539,113300.0,113290.0,0.53686286]
[1756385603822,0.44315253,113300.0,113290.0,0.53686286]
[1756385604015,0.85963539,113300.0,113290.0,0.53686286]
[1756385604522,0.907331,113300.0,113290.0,0.53686286]
[1756385606618,0.49084814,113300.0,113290.0,0.53686286]
[1756385606821,0.85963539,113300.0,113290.0,0.53686286]
[1756385607520,0.85962216,113300.0,113290.0,0.53686286]
[1756385608331,0.85962216,113300.0,113290.0,0.12038]
[1756385608733,0.85962216,113300.0,113290.0,0.53686286]
[1756385609330,0.0429293,113300.0,113290.0,1.23592746]
[1756385609632,0.02539751,113300.0,113290.0,0.73118]
[1756385609826,0.02539751,113300.0,113290.0,1.14766286]
[1756385610933,0.02539751,113300.0,113290.0,1.23592746]
[1756385611429,0.04187751,113300.0,113290.0,1.23592746]
[1756385616432,0.02539751,113300.0,113290.0,1.23592746]
[1756385624738,0.02539751,113300.0,113290.0,2.05284746]
[1756385627131,0.01648,113310.0,113300.0,0.03895]
[1756385627432,0.01648,113310.0,113300.0,0.45543286]
[1756385628141,0.01648,113310.0,113300.0,0.54368956]
[1756385628444,0.01748,113310.0,113300.0,0.54368956]
[1756385629043,0.001,113310.0,113300.0,0.54368956]
[1756385629243,0.002,113310.0,113300.0,0.54368956]
[1756385629442,0.01848,113310.0,113300.0,0.54368956]
[1756385629644,0.06617561,113310.0,113300.0,0.54368956]
[1756385630937,0.09059561,113310.0,113300.0,0.54368956]
[1756385632145,0.09059561,113310.0,113300.0,0.45543286]
[1756385633144,0.0429,113310.0,113300.0,0.45543286]
[1756385633341,0.45938286,113310.0,113300.0,0.45543286]
[1756385633739,0.0429,113310.0,113300.0,0.45543286]
[1756385639054,0.0679999,113310.0,113300.0,0.45543286]
[1756385642553,0.0435799,113310.0,113300.0,0.45543286]
[1756385642948,0.0668499,113310.0,113300.0,0.45543286]
[1756385643359,0.0668499,113310.0,113300.0,0.03895]
[1756385643755,0.84413276,113310.0,113300.0,0.03895]
[1756385644058,1.55831123,113310.0,113300.0,0.03895]
[1756385644462,1.14182837,113310.0,113300.0,0.01622]
[1756385644655,1.53504123,113310.0,113290.0,0.44095286]
[1756385644852,1.63191286,113300.0,113290.0,0.50620286]
[1756385645052,1.2405299,113300.0,113290.0,0.50620286]
[1756385645260,1.65701276,113300.0,113290.0,0.08972]
[1756385645454,1.65701276,113300.0,113290.0,0.50620286]
[1756385646961,1.2405299,113300.0,113290.0,0.50620286]
[1756385647163,1.65701276,113300.0,113290.0,0.50620286]
[1756385647363,1.65701276,113300.0,113290.0,0.50720286]
[1756385648559,1.65701276,113300.0,113290.0,0.09072]
[1756385649164,1.65701276,113300.0,113290.0,0.50720286]
[1756385652361,1.97231275,113300.0,113290.0,0.01625]
[1756385652559,1.97231905,113300.0,113290.0,0.001]
[1756385654069,1.97431905,113300.0,113270.0,0.44095286]
[1756385654270,0.81563286,113280.0,113270.0,0.07972]
[1756385654460,1.65677276,113280.0,113270.0,0.07972]
[1756385655568,1.65677276,113280.0,113270.0,0.08072]
[1756385656067,1.65697823,113280.0,113270.0,0.04072]
[1756385657564,1.65697823,113280.0,113270.0,0.04172]
[1756385661673,1.24931469,113280.0,113270.0,0.04172]
[1756385661873,1.66579755,113280.0,113270.0,0.04172]
[1756385663965,1.66579755,113280.0,113270.0,0.01725]
[1756385664170,1.24931469,113280.0,113270.0,0.04172]
[1756385664379,1.66579755,113280.0,113270.0,0.45820286]
[1756385665567,1.66579755,113280.0,113270.0,0.04172]
[1756385665978,1.66579755,113280.0,113270.0,0.45820286]
[1756385666277,1.24931469,113280.0,113270.0,0.45820286]
[1756385666483,1.66579755,113280.0,113270.0,0.45820286]
[1756385667182,1.24931469,113280.0,113270.0,0.45820286]
[1756385667378,1.66579755,113280.0,113270.0,0.45820286]
[1756385670368,1.66579755,113280.0,113270.0,0.04172]
[1756385670571,1.24931469,113280.0,113270.0,0.45820286]
[1756385670769,1.66579755,113280.0,113270.0,0.01725]
[1756385670973,2.08228041,113280.0,113270.0,0.002]
[1756385671176,1.66579755,113280.0,113270.0,0.01768]
[1756385671384,2.39228041,113280.0,113270.0,0.002]
[1756385673777,1.55931469,113280.0,113270.0,0.01768]
[1756385673982,1.97579755,113280.0,113270.0,0.01768]
[1756385674383,1.97579755,113280.0,113270.0,0.002]
[1756385675184,2.39228041,113280.0,113270.0,0.002]
[1756385677282,1.66579755,113280.0,113270.0,0.002]
[1756385677875,1.66579755,113280.0,113270.0,0.01768]
[1756385678983,1.66579755,113280.0,113270.0,0.002]
[1756385679179,2.08228041,113280.0,113270.0,0.002]
[1756385679881,1.66579755,113280.0,113270.0,0.002]
[1756385680686,1.66579755,113280.0,113270.0,0.01768]
[1756385684690,1.24931469,113280.0,113270.0,0.01768]
[1756385684990,1.66579755,113280.0,113270.0,0.01768]
[1756385685790,1.24931469,113280.0,113270.0,0.01768]
[1756385685986,1.66579755,113280.0,113270.0,0.01768]
[1756385686180,1.66579755,113280.0,113270.0,0.41848286]
[1756385686491,1.66579755,113280.0,113270.0,0.43416286]
[1756385686683,1.66579755,113280.0,113270.0,0.01768]
[1756385687287,1.66579755,113280.0,113270.0,0.002]
[1756385687480,1.24931469,113280.0,113270.0,0.01768]
[1756385687680,1.66579755,113280.0,113270.0,0.01768]
[1756385688091,0.84975755,113280.0,113270.0,0.01768]
[1756385688284,0.84975755,113280.0,113270.0,0.45666286]
[1756385688481,1.66507755,113280.0,113270.0,0.04018]
[1756385688686,1.66507755,113280.0,113270.0,0.45666286]
[1756385689388,0.42445537,113280.0,113270.0,0.54494316]
[1756385689587,0.06365537,113280.0,113270.0,1.25511406]
[1756385689788,0.04038537,113280.0,113270.0,1.25511406]
[1756385690794,0.02530537,113280.0,113270.0,2.48687692]
[1756385690994,0.02530537,113280.0,113270.0,1.6539112]
[1756385691294,0.02530537,113280.0,113270.0,2.48687692]
[1756385693298,0.03285438,113300.0,113290.0,0.0882647]
[1756385693494,0.11293581,113300.0,113290.0,0.98372756]
[1756385694403,0.11493581,113300.0,113290.0,0.98372756]
[1756385695098,0.11493581,113300.0,113290.0,0.4872447]
[1756385695300,0.53141867,113300.0,113290.0,0.90372756]
[1756385695492,0.53341867,113300.0,113290.0,0.90372756]
[1756385695905,0.53241867,113300.0,113290.0,0.90372756]
[1756385696898,0.11593581,113300.0,113290.0,0.90372756]
[1756385697295,0.11493581,113300.0,113290.0,0.90372756]
[1756385699901,0.06026581,113300.0,113290.0,0.98372756]
[1756385700403,0.50078867,113300.0,113290.0,0.4872447]
[1756385700591,0.50078867,113300.0,113290.0,0.90372756]
[1756385700793,0.08430581,113300.0,113290.0,0.90372756]
[1756385701402,0.50078867,113300.0,113290.0,0.90372756]
[1756385701700,0.06026581,113300.0,113290.0,0.90372756]
[1756385701906,0.47674867,113300.0,113290.0,0.90372756]
[1756385702101,0.50078867,113300.0,113290.0,0.90372756]
[1756385702301,0.06026581,113300.0,113290.0,0.90372756]
[1756385702895,0.08430581,113300.0,113290.0,0.90372756]
[1756385704798,0.06026581,113300.0,113290.0,0.90372756]
[1756385705492,0.08430581,113300.0,113290.0,0.90372756]
[1756385706104,0.08430581,113300.0,113290.0,0.4872447]
[1756385706502,0.50078867,113300.0,113290.0,0.90372756]
[1756385708401,0.50078867,113300.0,113290.0,1.71844756]
[1756385710211,0.08430581,113300.0,113290.0,1.71844756]
[1756385710407,0.47674867,113300.0,113290.0,1.71844756]
[1756385711103,0.50078867,113300.0,113290.0,1.71844756]
[1756385712712,0.08430581,113300.0,113290.0,1.71844756]
[1756385713805,0.06026581,113300.0,113290.0,1.71844756]
[1756385714408,0.04501581,113300.0,113290.0,1.79844756]
[1756385716713,0.04401581,113300.0,113290.0,1.79844756]
[1756385716914,0.04301581,113300.0,113290.0,1.79844756]
[1756385717112,0.04301581,113300.0,113290.0,1.79944756]
[1756385722520,0.04301581,113300.0,113290.0,2.21593042]
[1756385722818,0.02541143,113300.0,113290.0,1.79944756]
[1756385723123,0.02541143,113300.0,113290.0,2.04944756]
[1756385723716,0.06708839,113320.0,113310.0,0.1284688]
[1756385723917,0.0924196,113320.0,113310.0,1.72007166]
[1756385725324,0.0944196,113320.0,113310.0,1.72007166]
[1756385726625,0.0964196,113320.0,113310.0,1.72007166]
[1756385726925,0.0874271,113320.0,113310.0,1.72007166]
[1756385727119,0.0633871,113320.0,113310.0,1.72007166]
[1756385727316,0.0633871,113320.0,113310.0,2.13655452]
[1756385727824,0.0633871,113320.0,113310.0,1.72007166]
[1756385728915,0.0633871,113320.0,113310.0,1.3035888]
[1756385729120,0.0633871,113320.0,113310.0,1.72007166]
[1756385730724,0.0872971,113320.0,113310.0,1.28755218]
[1756385730924,0.50377996,113320.0,113310.0,1.70403504]
[1756385732630,0.0633871,113320.0,113310.0,1.79228354]
[1756385732832,0.0872971,113320.0,113310.0,1.79228354]
[1756385733724,0.0633871,113320.0,113310.0,1.79228354]
[1756385734231,0.47986996,113320.0,113310.0,1.79228354]
[1756385735032,0.50377996,113320.0,113310.0,1.72007136]
[1756385735232,0.0872971,113320.0,113310.0,1.72007136]
[1756385735432,0.50377996,113320.0,113310.0,1.72007136]
[1756385736533,0.50377996,113320.0,113310.0,1.3035885]
[1756385736835,0.50377996,113320.0,113310.0,1.72007136]
[1756385740838,0.50377996,113320.0,113310.0,1.79128125]
[1756385741334,0.0872971,113320.0,113310.0,1.79128125]
[1756385741544,0.0633871,113320.0,113310.0,1.79128125]
[1756385741734,0.47986996,113320.0,113310.0,1.79128125]
[1756385742543,0.0633871,113320.0,113310.0,1.79128125]
[1756385742841,0.47986996,113320.0,113310.0,1.79128125]
[1756385745239,0.47986996,113320.0,113310.0,1.70303275]
[1756385745543,0.50377996,113320.0,113310.0,1.70303275]
[1756385747260,0.48601407,113320.0,113310.0,1.70303275]
[1756385750052,0.48601407,113320.0,113310.0,1.28654989]
[1756385750252,0.48601407,113320.0,113310.0,1.70303275]
[1756385751961,0.48601407,113320.0,113310.0,1.28654989]
[1756385752160,0.48601407,113320.0,113310.0,1.70303275]
[1756385752360,0.06953121,113320.0,113310.0,1.70303275]
[1756385752561,0.48601407,113320.0,113310.0,1.70303275]
[1756385752957,0.48601407,113320.0,113310.0,1.28654989]
[1756385753154,0.48601407,113320.0,113310.0,1.70303275]
[1756385754263,0.48601407,113320.0,113310.0,1.28654989]
[1756385754562,0.48601407,113320.0,113310.0,1.70303275]
[1756385754958,0.48601407,113320.0,113310.0,1.28654989]
[1756385755261,0.48601407,113320.0,113310.0,1.70303275]
[1756385758264,0.48601407,113320.0,113310.0,1.28654989]
[1756385758462,0.48601407,113320.0,113310.0,1.70303275]
[1756385759066,0.04562121,113320.0,113310.0,1.70303275]
[1756385759458,0.46210407,113320.0,113310.0,1.70303275]
[1756385761765,0.48507407,113320.0,113310.0,1.70303275]
[1756385763264,0.06859121,113320.0,113310.0,1.70303275]
[1756385763466,0.48507407,113320.0,113310.0,1.70303275]
[1756385766669,0.06859121,113320.0,113310.0,1.79128155]
[1756385766870,0.46210407,113320.0,113310.0,1.79128155]
[1756385767470,0.02933121,113320.0,113310.0,1.87128155]
[1756385767870,0.44581407,113320.0,113310.0,1.87128155]
[1756385768066,0.02933121,113320.0,113310.0,1.87128155]
[1756385768466,0.44581407,113320.0,113310.0,1.87128155]
[1756385769973,0.02933121,113320.0,113310.0,2.53776441]
[1756385770567,0.00433121,113320.0,113310.0,2.53776441]
[1756385770773,0.08572191,113350.0,113340.0,0.1043155]
[1756385770970,0.01813266,113350.0,113340.0,2.12004392]
[1756385771272,0.01813266,113350.0,113340.0,1.79355836]
[1756385771469,0.01813266,113350.0,113340.0,2.21004122]
[1756385772469,0.01813266,113350.0,113340.0,2.46004122]
[1756385772975,0.47259552,113350.0,113340.0,0.98043836]
[1756385773166,0.47359552,113350.0,113340.0,1.79347836]
[1756385773877,0.47459552,113350.0,113340.0,1.79347836]
[1756385774274,0.03514266,113350.0,113340.0,1.79347836]
[1756385777471,0.0837049,113350.0,113340.0,2.20996122]
[1756385778072,0.02013266,113350.0,113340.0,2.20996122]
[1756385779771,0.02013266,113350.0,113340.0,1.79319836]
[1756385779772,0.03514266,113350.0,113340.0,1.79319836]
[1756385779971,0.47459552,113350.0,113340.0,1.3767155]
[1756385780170,0.47459552,113350.0,113340.0,1.79319836]
[1756385781184,0.47459552,113350.0,113340.0,0.98043836]
[1756385781373,0.47459552,113350.0,113340.0,1.70497286]
[1756385781774,0.47459552,113350.0,113340.0,0.89221286]
[1756385781978,0.47459552,113350.0,113340.0,1.70489286]
[1756385782284,0.47459552,113350.0,113340.0,1.79311826]
[1756385782684,0.50022777,113350.0,113340.0,1.79311826]
[1756385782876,0.50022777,113350.0,113340.0,1.28841]
[1756385783070,0.50022777,113350.0,113340.0,1.70489286]
[1756385783479,0.50022777,113350.0,113340.0,1.79311836]
[1756385784170,0.08374491,113350.0,113340.0,1.79311836]
[1756385784368,0.50022777,113350.0,113340.0,1.79311836]
[1756385787778,0.47725777,113350.0,113340.0,1.79311836]
[1756385789083,0.50022777,113350.0,113340.0,1.28841]
[1756385789283,0.50022777,113350.0,113340.0,1.70489286]
[1756385789486,0.50022777,113350.0,113340.0,1.79311836]
[1756385789882,0.02692491,113350.0,113340.0,2.45960122]
[1756385791175,0.001,113350.0,113340.0,2.45960122]
[1756385791474,0.001,113350.0,113340.0,1.99661149]
[1756385792382,0.2899093,113370.0,113350.0,0.0882109]
[1756385792587,0.03851,113360.0,113350.0,0.55797186]
[1756385792786,0.06413956,113360.0,113350.0,0.91877186]
[1756385793390,0.04088956,113360.0,113350.0,0.91877186]
[1756385793583,0.02562956,113360.0,113350.0,0.91877186]
[1756385794685,0.03951,113370.0,113360.0,0.08821]
[1756385794985,0.0266295,113370.0,113360.0,2.08128198]
[1756385795485,0.01750983,113380.0,113370.0,0.0882022]
[1756385795697,0.04313533,113380.0,113370.0,0.91891434]
[1756385796187,0.04313533,113380.0,113370.0,0.99039699]
[1756385796389,0.01750983,113380.0,113370.0,0.99039699]
[1756385797188,0.01750983,113380.0,113370.0,0.99239699]
[1756385797980,0.01750983,113380.0,113370.0,0.622421]
[1756385798188,0.01750983,113380.0,113370.0,0.99239699]
[1756385798384,0.01750983,113380.0,113370.0,0.99339699]
[1756385800491,0.01750983,113380.0,113370.0,1.24339699]
[1756385801090,0.03855,113400.0,113380.0,0.0881944]
[1756385801292,0.06417487,113400.0,113390.0,0.45816259]
[1756385801590,0.06417487,113400.0,113390.0,0.1879754]
[1756385802693,0.02566487,113400.0,113390.0,0.5487754]
[1756385802890,0.02566487,113400.0,113390.0,0.91875139]
[1756385803093,0.04092487,113400.0,113390.0,0.5487754]
[1756385803296,0.04092487,113400.0,113390.0,0.91875139]
[1756385804294,0.04192487,113400.0,113390.0,0.91875139]
[1756385804793,0.04292487,113400.0,113390.0,0.91875139]
[1756385805990,0.02766487,113400.0,113390.0,0.91875139]
[1756385807186,0.04292487,113400.0,113390.0,0.91875139]
[1756385807394,0.02766487,113400.0,113390.0,0.91875139]
[1756385808893,0.02766487,113400.0,113390.0,0.5487754]
[1756385809094,0.04292487,113400.0,113390.0,0.91875139]
[1756385809798,0.04192487,113400.0,113390.0,0.91975139]
[1756385810002,0.06417487,113400.0,113390.0,0.4635888]
[1756385810196,0.68415086,113400.0,113390.0,0.1027888]
[1756385810394,1.04495086,113400.0,113390.0,0.1027888]
[1756385810595,1.37495086,113400.0,113390.0,0.083]
[1756385810794,1.74492685,113400.0,113390.0,0.083]
[1756385810992,1.37495086,113400.0,113390.0,0.083]
[1756385811195,1.9202831,113400.0,113390.0,0.083]
[1756385811692,2.29025909,113400.0,113390.0,0.058]
[1756385812097,2.29025909,113400.0,113390.0,0.002]
[1756385812293,2.29125909,113400.0,113390.0,0.002]
[1756385812490,1.55130711,113400.0,113390.0,0.002]
[1756385812696,1.9212831,113400.0,113390.0,0.002]
[1756385813204,1.6712831,113400.0,113390.0,0.002]
[1756385813404,1.6480331,113400.0,113370.0,0.46893815]
[1756385813605,0.81694363,113390.0,113380.0,0.03932]
[1756385813799,0.8425685,113390.0,113380.0,0.08932]
[1756385815392,1.6543285,113390.0,113380.0,0.06561]
[1756385815791,1.6543285,113390.0,113380.0,0.08932]
[1756385816708,1.28435251,113390.0,113380.0,0.08932]
[1756385816902,1.6543285,113390.0,113380.0,0.08932]
[1756385817102,1.6543285,113390.0,113380.0,0.06561]
[1756385817297,0.79491086,113390.0,113380.0,0.06561]
[1756385818812,0.87585487,113390.0,113380.0,0.08932]
[1756385820705,0.06413487,113390.0,113380.0,0.45929599]
[1756385820903,0.06413487,113390.0,113380.0,0.82009599]
[1756385821304,0.06413487,113390.0,113380.0,0.45012]
[1756385821508,0.06413487,113390.0,113380.0,0.90829049]
[1756385822711,0.06413487,113390.0,113380.0,0.5383145]
[1756385823111,0.06413487,113390.0,113380.0,0.5393145]
[1756385823609,0.06413487,113390.0,113380.0,0.45312]
[1756385824107,0.06413487,113390.0,113380.0,0.91129039]
[1756385824708,0.02562487,113390.0,113380.0,1.16129039]
[1756385824903,0.4018,113400.0,113390.0,0.02314]
[1756385825113,0.42761458,113400.0,113390.0,0.40918599]
[1756385825409,0.06681458,113400.0,113390.0,0.40918599]
[1756385825713,0.06681458,113400.0,113390.0,0.03921]
[1756385825912,0.06681458,113400.0,113390.0,0.40918599]
[1756385826112,0.06681458,113400.0,113390.0,0.49737269]
[1756385827804,0.06681458,113400.0,113390.0,0.40918599]
[1756385828513,0.06681458,113400.0,113390.0,0.49737269]
[1756385829812,0.04223458,113400.0,113390.0,0.49737269]
[1756385830319,0.02585458,113400.0,113390.0,0.85817269]
[1756385830509,0.02585458,113400.0,113390.0,1.1876537]
[1756385831915,0.02462,113400.0,113390.0,1.1896537]
[1756385832116,0.02462,113400.0,113390.0,1.1906537]
[1756385832315,0.05043136,113400.0,113390.0,1.1906537]
[1756385832523,4e-05,113400.0,113390.0,1.1906537]
[1756385833613,0.02611189,113400.0,113390.0,1.1906537]
[1756385833814,4e-05,113400.0,113390.0,1.1906537]
[1756385834718,4e-05,113400.0,113390.0,0.82067771]
[1756385835018,4e-05,113400.0,113390.0,1.1906537]
[1756385836520,0.02611188,113400.0,113390.0,1.1906537]
[1756385837522,0.06707188,113400.0,113390.0,1.7519337]
[1756385838020,0.06707188,113400.0,113390.0,0.9406537]
[1756385838221,0.06707188,113400.0,113390.0,1.7519337]
[1756385839424,0.06707188,113400.0,113390.0,1.38195771]
[1756385839815,0.06707188,113400.0,113390.0,1.7519337]
[1756385840216,0.06707188,113400.0,113390.0,0.9406537]
[1756385840621,0.06707188,113400.0,113390.0,1.7518537]
[1756385840822,0.06707188,113400.0,113390.0,0.9406537]
[1756385841015,0.06707188,113400.0,113390.0,1.7518537]